bitfinex-derivatives/quotes_ETHF0:USTF0_20250416
["timestamp","ask_amount","ask_price","bid_price","bid_amount"]
[1744774043215,1.25072,1599.2,1599.1,1.6613]
[1744774043406,2.89702,1599.2,1599.1,1.6613]
[1744774043606,2.89702,1599.2,1599.1,44.089]
[1744774044311,1.25072,1599.2,1599.1,45.3398]
[1744774044617,1.25072,1599.2,1599.1,44.089]
[1744774046013,2.09392,1599.2,1599.1,43.2672]
[1744774048715,3.73142,1599.2,1599.1,43.2672]
[1744774048916,1.2508,1599.1,1599.0,0.00938849]
[1744774049116,3.7328,1599.1,1599.0,0.00938849]
[1744774050525,6.9406,1599.1,1599.0,0.00938849]
[1744774050912,11.9406,1599.1,1599.0,0.00938849]
[1744774051921,6.9406,1599.1,1599.0,0.00938849]
[1744774052120,11.9406,1599.1,1599.0,0.00938849]
[1744774052421,6.9406,1599.1,1599.0,0.00938849]
[1744774057916,6.9406,1599.1,1599.0,1.60478849]
[1744774059418,1.2508,1599.1,1599.0,2.46818849]
[1744774066627,1.2508,1599.1,1599.0,0.00938849]
[1744774066826,4.5399,1599.1,1599.0,0.00938849]
[1744774067826,4.5399,1599.1,1599.0,1.68788849]
[1744774071623,7.7477,1599.1,1599.0,0.00938849]
[1744774075528,7.7477,1599.1,1599.0,1.68868849]
[1744774079340,4.5399,1599.1,1599.0,1.68868849]
[1744774085650,7.7477,1599.1,1599.0,1.68868849]
[1744774086147,7.7477,1599.1,1599.0,0.00938849]
[1744774090949,17.4329,1599.1,1598.3,8.26637528]
[1744774091143,1.25135,1598.4,1598.3,8.26637528]
[1744774091544,1.25135,1598.4,1598.3,9.86887528]
[1744774096253,4.45915,1598.4,1598.3,9.86887528]
[1744774096654,6.08985,1598.4,1598.3,9.86887528]
[1744774097053,6.08985,1598.4,1598.3,1.6025]
[1744774099455,1.25142,1598.3,1598.2,1.60948849]
[1744774099756,1.25182,1597.8,1597.7,8.26637528]
[1744774100055,1.25182,1597.8,1597.7,9.10397528]
[1744774100258,1.25182,1597.8,1597.7,5.8376]
[1744774100551,1.25182,1597.8,1597.7,0.8376]
[1744774101158,1.25182,1597.8,1597.7,3.3222]
[1744774102959,1.25189,1597.7,1597.6,0.00938849]
[1744774103151,2.99679,1597.7,1597.6,0.00938849]
[1744774103758,2.99679,1597.7,1597.6,1.72388849]
[1744774104052,1.25189,1597.7,1597.6,1.72388849]
[1744774104945,2.93189,1597.7,1597.6,1.72388849]
[1744774106762,3.42299382,1597.7,1597.6,1.72388849]
[1744774108260,3.42299382,1597.7,1597.6,0.00938849]
[1744774109061,2.93189,1597.7,1597.6,0.00938849]
[1744774110360,3.44275952,1597.7,1597.6,0.00938849]
[1744774115765,2.93189,1597.7,1597.6,0.00938849]
[1744774116366,3.44006074,1597.7,1597.6,0.00938849]
[1744774117166,2.93189,1597.7,1597.6,0.00938849]
[1744774117866,6.13969,1597.7,1597.6,0.00938849]
[1744774118770,6.64408772,1597.7,1597.6,0.00938849]
[1744774120058,1.25236,1597.1,1597.0,40.8]
[1744774120462,1.25236,1597.1,1597.0,45.8]
[1744774122272,1.2526,1596.8,1596.7,4.141]
[1744774122467,1.25258,1596.9,1596.7,5.39368]
[1744774122673,1.25258,1596.9,1596.8,40.8]
[1744774123072,1.25258,1596.9,1596.8,49.0598]
[1744774124483,1.25258,1596.9,1596.8,44.0598]
[1744774124869,1.25258,1596.9,1596.8,3.2598]
[1744774125072,4.46038,1596.9,1596.8,1.5984]
[1744774125576,6.95698,1596.9,1596.8,1.5984]
[1744774126081,7.74868,1596.9,1596.8,1.5984]
[1744774128572,1.25276,1596.6,1596.5,42.4614]
[1744774129179,1.25276,1596.6,1596.5,1.6614]
[1744774132595,3.79876,1596.6,1596.5,1.6614]
[1744774133695,1.25284,1596.5,1596.4,1.6164]
[1744774133894,1.25284,1596.5,1596.4,2.4138]
[1744774134393,1.25299,1596.3,1596.2,1.5919]
[1744774134787,1.25299,1596.3,1596.2,42.3919]
[1744774136494,1.25299,1596.3,1596.2,44.0556]
[1744774140992,1.25296,1596.4,1596.2,49.0556]
[1744774141198,1.25296,1596.4,1596.3,1.6422]
[1744774142590,1.25296,1596.4,1596.3,42.4422]
[1744774145605,2.97426,1596.4,1596.3,42.4422]
[1744774146502,1.25323,1596.0,1595.9,3.2078]
[1744774147007,1.25323,1596.0,1595.9,44.0078]
[1744774147902,1.25323,1596.0,1595.9,46.5051]
[1744774151600,1.25323,1596.0,1595.9,43.2973]
[1744774153013,1.25323,1596.0,1595.9,46.5051]
[1744774153613,1.25323,1596.0,1595.9,47.75841]
[1744774153797,1.25323,1596.0,1595.9,52.75841]
[1744774154507,1.25323,1596.0,1595.9,47.75841]
[1744774154810,1.25323,1596.0,1595.9,46.5051]
[1744774157506,1.25323,1596.0,1595.9,47.75841]
[1744774157809,1.26259849,1596.1,1596.0,1.25323]
[1744774158002,1.26259849,1596.1,1596.0,2.93423]
[1744774159504,0.00938849,1596.1,1596.0,12.07723]
[1744774160011,0.00938849,1596.1,1596.0,52.87723]
[1744774160511,1.26253849,1596.1,1596.0,52.87723]
[1744774160915,0.00938849,1596.1,1596.0,52.87723]
[1744774162916,1.25296,1596.4,1596.3,1.25299]
[1744774163118,1.25296,1596.4,1596.3,4.46079]
[1744774163610,1.25284,1596.5,1596.4,1.25287]
[1744774163817,1.25284,1596.5,1596.4,2.04917]
[1744774164010,1.25284,1596.5,1596.4,3.69057]
[1744774164213,1.25284,1596.5,1596.4,44.49057]
[1744774164818,1.26218849,1596.6,1596.5,1.25284]
[1744774165017,1.26218849,1596.6,1596.5,6.98704]
[1744774166413,0.00938849,1596.6,1596.5,47.78704]
[1744774166619,1.26214849,1596.6,1596.5,47.78704]
[1744774166823,0.00938849,1596.6,1596.5,47.78704]
[1744774168320,1.26214849,1596.6,1596.5,47.78704]
[1744774170122,1.26214849,1596.6,1596.5,46.5342]
[1744774170323,1.26214849,1596.6,1596.5,45.7028]
[1744774171526,1.26214849,1596.6,1596.5,42.495]
[1744774177124,1.26214849,1596.6,1596.5,43.74784]
[1744774177326,1.26214849,1596.6,1596.5,42.495]
[1744774177831,1.26214849,1596.6,1596.5,40.8]
[1744774181122,1.25291,1596.4,1596.3,0.00938849]
[1744774181629,1.25291,1596.4,1596.3,40.80938849]
[1744774181931,2.87091,1596.4,1596.3,40.80938849]
[1744774184031,2.87091,1596.4,1596.3,42.06237849]
[1744774184231,2.87091,1596.4,1596.3,40.80938849]
[1744774188232,7.87091,1596.4,1596.3,1e-08]
[1744774192241,2.87091,1596.4,1596.3,1e-08]
[1744774200549,7.87091,1596.4,1596.3,1e-08]
[1744774200757,2.87091,1596.4,1596.3,1e-08]
[1744774202053,2.87091,1596.4,1596.3,1.69380001]
[1744774203262,2.87091,1596.4,1596.3,1e-08]
[1744774203762,2.87091,1596.4,1596.3,1.69380001]
[1744774207258,1.25291,1596.4,1596.3,2.94679001]
[1744774207462,1.25291,1596.4,1596.3,1.69380001]
[1744774212067,1.25291,1596.4,1596.3,2.94679001]
[1744774212259,1.2529,1596.5,1596.4,1.25291]
[1744774212458,1.2529,1596.5,1596.4,2.92751]
[1744774213066,1.2529,1596.5,1596.4,1.6746]
[1744774213655,1.2529,1596.5,1596.4,2.92751]
[1744774213861,1.2529,1596.5,1596.4,1.6746]
[1744774214367,1.2529,1596.5,1596.4,2.92751]
[1744774214553,1.26219849,1596.6,1596.5,1.25284]
[1744774214760,1.26219849,1596.6,1596.5,1.6198]
[1744774215257,1.26219849,1596.6,1596.5,2.87264]
[1744774215457,1.26219849,1596.6,1596.5,4.61624]
[1744774215658,1.26219849,1596.6,1596.5,3.3634]
[1744774215860,1.26219849,1596.6,1596.5,4.61624]
[1744774216263,1.26219849,1596.6,1596.5,3.3634]
[1744774219170,1.26219849,1596.6,1596.5,4.61624]
[1744774221672,0.00938849,1596.6,1596.5,4.61624]
[1744774221871,1.26214849,1596.6,1596.5,4.61624]
[1744774222667,0.00938849,1596.6,1596.5,4.61624]
[1744774222872,0.00938849,1596.6,1596.5,7.82404]
[1744774223273,1.26214849,1596.6,1596.5,7.82404]
[1744774223676,0.00938849,1596.6,1596.5,7.82404]
[1744774223974,0.00938849,1596.6,1596.5,12.82404]
[1744774225277,1.26214849,1596.6,1596.5,12.82404]
[1744774225467,1.26214849,1596.6,1596.5,6.5712]
[1744774225866,1.26214849,1596.6,1596.5,4.9514]
[1744774226072,2.92954849,1596.6,1596.5,4.9514]
[1744774227073,9.88458849,1596.6,1596.3,1e-08]
[1744774227266,9.88458849,1596.6,1596.1,8.26637528]
[1744774227267,1.25307,1596.2,1596.1,8.19171368]
[1744774227579,1.25323,1596.0,1595.9,16.6737681]
[1744774227775,4.46103,1596.0,1595.9,16.6737681]
[1744774228077,1.25331,1595.9,1595.8,16.6737681]
[1744774228270,7.08661,1595.9,1595.8,16.6737681]
[1744774231482,1.25354,1595.6,1595.5,4.0679]
[1744774232176,1.5866,1595.6,1595.5,5.32152]
[1744774232374,0.00938849,1595.7,1595.6,1.25354]
[1744774232573,0.00938849,1595.7,1595.6,2.88234]
[1744774233478,1.26284849,1595.7,1595.6,1.6288]
[1744774235981,1.26284849,1595.7,1595.6,2.88234]
[1744774236179,1.26284849,1595.7,1595.6,12.02134]
[1744774237980,1.26284849,1595.7,1595.6,7.02134]
[1744774238481,1.26284849,1595.7,1595.6,5.7678]
[1744774240582,2.90914849,1595.7,1595.6,5.7678]
[1744774241581,2.90914849,1595.7,1595.6,7.02134]
[1744774243184,2.90914849,1595.7,1595.6,5.39254]
[1744774243386,2.90914849,1595.7,1595.6,4.139]
[1744774243683,2.90914849,1595.7,1595.6,5.39254]
[1744774243884,2.90914849,1595.7,1595.6,7.03774]
[1744774251694,1.25333,1595.9,1595.8,1.25331]
[1744774251879,6.18548,1596.0,1595.9,1.25331]
[1744774252084,2.97768,1596.0,1595.9,3.2078]
[1744774252287,1.25331,1595.9,1595.8,4.55372]
[1744774252989,2.98706849,1596.0,1595.9,1.25331]
[1744774253190,2.98706849,1596.0,1595.9,2.89601]
[1744774253993,2.98706849,1596.0,1595.9,1.6427]
[1744774255990,1.25331,1595.9,1595.8,1.6616]
[1744774256196,2.95891,1595.9,1595.8,2.91498]
[1744774256386,2.95891,1595.9,1595.8,1.6616]
[1744774256589,2.95891,1595.9,1595.8,2.91499]
[1744774260496,1.7056,1595.9,1595.8,2.91499]
[1744774260695,1.26267849,1596.0,1595.9,1.25331]
[1744774260998,2.89711849,1596.0,1595.9,2.87601]
[1744774262605,2.89711849,1596.0,1595.7,6.35073849]
[1744774262606,1.64388849,1596.0,1595.7,3.21718849]
[1744774262790,1.25339,1595.8,1595.7,4.47060849]
[1744774263597,2.05309,1595.8,1595.7,4.47060849]
[1744774264311,2.05309,1595.8,1595.7,1.26280849]
[1744774265802,2.05309,1595.8,1595.7,0.00938849]
[1744774266001,2.05309,1595.8,1595.7,1.26284849]
[1744774266198,2.85529,1595.8,1595.7,0.00938849]
[1744774266400,2.85529,1595.8,1595.7,1.26284849]
[1744774267208,2.85529,1595.8,1595.7,0.00938849]
[1744774267798,2.85529,1595.8,1595.7,1.26284849]
[1744774268303,0.8022,1595.8,1595.7,4.47064849]
[1744774268608,3.80497,1595.9,1595.8,1.25339]
[1744774268803,3.80497,1595.9,1595.8,2.92899]
[1744774269001,2.96187,1595.9,1595.8,2.92899]
[1744774271404,1.7085,1595.9,1595.8,2.92899]
[1744774271599,2.96181,1595.9,1595.8,2.92899]
[1744774272898,2.96181,1595.9,1595.8,1.25339]
[1744774276404,1.25339,1595.8,1595.7,1.26278849]
[1744774276604,3.72399,1595.8,1595.7,1.26278849]
[1744774278001,3.72399,1595.8,1595.7,0.00938849]
[1744774280020,3.72399,1595.8,1595.7,1.26284849]
[1744774281225,3.72399,1595.8,1595.7,2.11754849]
[1744774281429,3.72399,1595.8,1595.7,4.64074849]
[1744774281727,1.6255,1595.8,1595.7,7.84854849]
[1744774281929,1.6255,1595.8,1595.7,4.64074849]
[1744774281930,2.87889,1595.8,1595.7,4.64074849]
[1744774287330,1.6255,1595.8,1595.7,4.64074849]
[1744774287523,1.6255,1595.8,1595.7,7.84854849]
[1744774287726,2.86665849,1596.0,1595.9,1.25331]
[1744774288931,2.86665849,1596.0,1595.9,5.39031]
[1744774288932,0.00938849,1596.0,1595.9,5.39031]
[1744774289133,1.26261849,1596.0,1595.9,5.39031]
[1744774290424,1.26261849,1596.0,1595.9,46.19031]
[1744774290624,1.26261849,1596.0,1595.9,44.937]
[1744774290826,1.26261849,1596.0,1595.9,46.19031]
[1744774299438,0.00938849,1596.0,1595.9,46.19031]
[1744774299633,1.72258849,1596.0,1595.9,49.39811]
[1744774299835,1.72258849,1596.0,1595.9,51.00231]
[1744774300237,2.97581849,1596.0,1595.9,51.00231]
[1744774300440,2.97581849,1596.0,1595.9,47.79451]
[1744774300630,2.97581849,1596.0,1595.9,46.19031]
[1744774301435,2.97581849,1596.0,1595.9,49.39811]
[1744774301739,1.72258849,1596.0,1595.9,49.39811]
[1744774301942,1.72258849,1596.0,1595.9,51.09591]
[1744774302242,2.97581849,1596.0,1595.9,51.09591]
[1744774302431,1.72258849,1596.0,1595.9,51.09591]
[1744774302636,2.97581849,1596.0,1595.9,47.88811]
[1744774303139,2.97581849,1596.0,1595.9,51.09591]
[1744774303341,1.72258849,1596.0,1595.9,51.09591]
[1744774304928,2.97581849,1596.0,1595.9,51.09591]
[1744774306842,1.72258849,1596.0,1595.9,51.09591]
[1744774307637,1.72258849,1596.0,1595.9,47.88811]
[1744774307844,1.72258849,1596.0,1595.9,51.09591]
[1744774309536,1.72258849,1596.0,1595.9,47.88811]
[1744774309739,2.97581849,1596.0,1595.9,51.09591]
[1744774310145,1.72258849,1596.0,1595.9,51.09591]
[1744774311348,2.97581849,1596.0,1595.9,51.09591]
[1744774311645,1.72258849,1596.0,1595.9,51.09591]
[1744774315648,2.97581849,1596.0,1595.9,51.09591]
[1744774316045,1.72258849,1596.0,1595.9,51.09591]
[1744774317446,2.97581849,1596.0,1595.9,49.39811]
[1744774320646,2.97581849,1596.0,1595.9,46.19031]
[1744774323747,7.97581849,1596.0,1595.9,40.8]
[1744774323943,1.25339,1595.8,1595.7,0.00938849]
[1744774324550,7.91559,1595.8,1595.7,0.00938849]
[1744774324750,12.05159,1595.8,1595.7,0.00938849]
[1744774326845,7.05159,1595.8,1595.7,0.00938849]
[1744774327045,2.91559,1595.8,1595.7,0.00938849]
[1744774329452,7.91559,1595.8,1595.7,0.00938849]
[1744774330748,7.91559,1595.8,1595.7,1e-08]
[1744774331949,13.85159,1595.8,1595.7,1e-08]
[1744774338867,14.31232174,1595.8,1595.7,1e-08]
[1744774339864,1.2537,1595.4,1595.3,40.8]
[1744774340457,2.8818,1595.4,1595.3,40.8]
[1744774341253,4.76243,1595.4,1595.0,1.676]
[1744774341462,1.25394,1595.1,1595.0,1.676]
[1744774341655,1.25394,1595.1,1595.0,44.1722]
[1744774341867,1.25394,1595.1,1595.0,49.1722]
[1744774342068,1.25394,1595.1,1595.0,50.42621]
[1744774343367,1.25392,1595.2,1595.1,1.25394]
[1744774343567,1.25392,1595.2,1595.1,2.95014]
[1744774343763,1.25392,1595.2,1595.1,1.6962]
[1744774344163,2.95032,1595.2,1595.1,1.6962]
[1744774345866,1.25394,1595.1,1595.0,42.476]
[1744774346067,2.95034,1595.1,1595.0,42.476]
[1744774346768,3.80004,1595.1,1595.0,42.476]
[1744774346968,3.80004,1595.1,1595.0,40.8]
[1744774347370,7.00784,1595.1,1595.0,40.8]
[1744774348668,1.25409,1594.9,1594.8,3.2715]
[1744774349072,1.25409,1594.9,1594.8,44.0715]
[1744774350771,1.25409,1594.9,1594.8,50.32567]
[1744774351668,1.26346849,1595.0,1594.9,1.25409]
[1744774351972,1.26346849,1595.0,1594.9,1.7432]
[1744774352364,1.26346849,1595.0,1594.9,2.99729]
[1744774354672,1.26346849,1595.0,1594.9,1.7432]
[1744774357672,2.84816849,1595.0,1594.9,1.7432]
[1744774357877,1.25409,1594.9,1594.8,42.4855]
[1744774358075,1.25409,1594.9,1594.8,44.1272]
[1744774360868,1.25409,1594.9,1594.8,40.8]
[1744774361072,11.11419,1594.9,1594.8,40.8]
[1744774361572,6.11419,1594.9,1594.8,40.8]
[1744774361975,1.25425,1594.7,1594.6,1.649]
[1744774362575,1.25425,1594.7,1594.6,44.1068]
[1744774364575,1.25425,1594.7,1594.6,45.36113]
[1744774365774,1.25425,1594.7,1594.6,44.1068]
[1744774366075,1.25425,1594.7,1594.6,45.36113]
[1744774367876,1.25421,1594.8,1594.7,1.25418]
[1744774368075,1.25421,1594.8,1594.7,2.90388]
[1744774369278,1.25421,1594.8,1594.7,1.6497]
[1744774370777,2.90531,1594.8,1594.7,1.6497]
[1744774374376,2.90531,1594.8,1594.7,2.90395]
[1744774374575,1.25421,1594.8,1594.7,2.90395]
[1744774377279,1.25421,1594.8,1594.7,1.6497]
[1744774377579,1.25421,1594.8,1594.7,2.90395]
[1744774378679,2.94971,1594.8,1594.7,2.90395]
[1744774379380,2.94971,1594.8,1594.7,1.25425]
[1744774379582,1.25425,1594.7,1594.6,48.57617]
[1744774379778,2.94975,1594.7,1594.6,45.36837]
[1744774379975,2.94975,1594.7,1594.6,40.8]
[1744774382976,1.25449,1594.4,1594.3,0.8344]
[1744774383180,1.25449,1594.4,1594.1,17.93539612]
[1744774383181,1.25464,1594.2,1594.1,1.587]
[1744774383576,1.25464,1594.2,1594.1,42.387]
[1744774383881,2.84294,1594.2,1594.1,43.64172]
[1744774384080,2.84294,1594.2,1594.1,45.28182]
[1744774384674,4.136,1594.6,1594.1,52.16376]
[1744774384882,2.84271,1594.5,1594.4,3.2078]
[1744774385189,1.25451,1594.4,1594.3,1.25456]
[1744774385977,1.25456,1594.3,1594.2,4.137]
[1744774386373,1.25464,1594.2,1594.1,43.64172]
[1744774386579,2.84294,1594.2,1594.1,43.64172]
[1744774387079,1.2546,1594.3,1594.2,1.25464]
[1744774387276,1.25451,1594.4,1594.3,1.25456]
[1744774388888,1.25456,1594.3,1594.2,3.2078]
[1744774389090,1.25464,1594.2,1594.1,43.64168]
[1744774389277,1.25464,1594.2,1594.1,40.8]
[1744774390187,3.00184,1594.2,1594.1,40.8]
[1744774391881,1.25472,1594.1,1594.0,3.2078]
[1744774392085,3.00192,1594.1,1594.0,3.2078]
[1744774392485,3.00192,1594.1,1594.0,44.0078]
[1744774393094,3.00192,1594.1,1594.0,40.8]
[1744774400299,3.00192,1594.1,1594.0,42.0548]
[1744774400513,3.00192,1594.1,1594.0,41.653]
[1744774400799,3.00192,1594.1,1594.0,40.8]
[1744774400996,1.25496,1593.8,1593.7,0.853]
[1744774401194,1.25496,1593.8,1593.7,0.84378313]
[1744774401406,1.25496,1593.8,1593.7,2.09882313]
[1744774401604,2.88083849,1593.9,1593.8,1.25496]
[1744774401906,2.88083849,1593.9,1593.8,2.91736]
[1744774402205,2.88083849,1593.9,1593.8,1.6624]
[1744774402505,2.88083849,1593.9,1593.8,2.91736]
[1744774402705,2.88083849,1593.9,1593.8,42.4624]
[1744774403708,2.88083849,1593.9,1593.8,40.8]
[1744774404292,2.88083849,1593.9,1593.4,3.2078]
[1744774404293,1.25512,1593.6,1593.5,0.7888]
[1744774404492,1.2551,1593.7,1593.6,1.25506]
[1744774404698,1.2551,1593.7,1593.6,2.91746]
[1744774405004,1.2551,1593.7,1593.6,43.71746]
[1744774405197,1.2551,1593.7,1593.6,46.92526]
[1744774406403,1.2551,1593.7,1593.6,51.92526]
[1744774406805,1.2551,1593.7,1593.6,50.6702]
[1744774407103,1.2551,1593.7,1593.6,42.4624]
[1744774407605,1.2551,1593.7,1593.6,43.71752]
[1744774407905,1.2551,1593.7,1593.6,42.4624]
[1744774408798,1.2551,1593.7,1593.6,43.71752]
[1744774409894,1.25504,1593.7,1593.6,45.6702]
[1744774410098,2.89914,1593.7,1593.6,42.05512]
[1744774410294,2.89914,1593.7,1593.6,43.67842]
[1744774410807,1.25504,1593.8,1593.7,1.255]
[1744774411000,1.25504,1593.8,1593.7,2.9446]
[1744774411201,1e-08,1593.9,1593.8,1.25496]
[1744774411397,3.13622,1594.4,1593.8,17.8779]
[1744774411596,1.2547,1594.2,1594.1,1.2547]
[1744774411809,1.2547,1594.2,1594.1,42.9031]
[1744774412111,2.85470313,1594.3,1594.2,1.25464]
[1744774412305,1.26393849,1594.4,1594.3,1.25455]
[1744774412609,1.26387849,1594.4,1594.3,1.25455]
[1744774412807,0.00938849,1594.4,1594.3,1.25455]
[1744774413005,1.26387849,1594.4,1594.3,2.94415]
[1744774413714,0.00938849,1594.4,1594.3,2.94415]
[1744774413908,0.00938849,1594.4,1594.3,7.10015]
[1744774414103,7.13688,1594.9,1594.3,12.10015]
[1744774414410,1.25434,1594.6,1594.5,1.25433]
[1744774414608,1.25434,1594.6,1594.5,2.84873]
[1744774414910,1.2543,1594.7,1594.6,1.25432]
[1744774415206,1.2543,1594.7,1594.6,2.84872]
[1744774416109,1.2543,1594.7,1594.6,2.84873]
[1744774416408,1.2543,1594.7,1594.6,1.5944]
[1744774416804,1.2543,1594.7,1594.6,2.84873]
[1744774417107,2.88781849,1594.8,1594.7,1.25425]
[1744774417308,2.88781849,1594.8,1594.7,2.87475]
[1744774417510,2.88781849,1594.8,1594.7,3.67795]
[1744774419913,0.00938849,1594.8,1594.7,3.67795]
[1744774422720,1.26355849,1594.8,1594.7,3.67795]
[1744774423204,1.25433,1594.6,1594.5,2.12435]
[1744774423408,2.92771,1594.7,1594.6,1.25433]
[1744774423717,1.25433,1594.6,1594.5,4.58044]
[1744774425323,2.92769,1594.7,1594.6,1.25433]
[1744774425819,2.92769,1594.7,1594.6,2.89733]
[1744774426020,1.6734,1594.7,1594.6,2.89733]
[1744774426213,1.6734,1594.7,1594.6,6.10513]
[1744774426414,2.92765,1594.7,1594.6,6.10513]
[1744774426820,1.6734,1594.7,1594.6,6.10513]
[1744774427521,2.92765,1594.7,1594.6,6.10513]
[1744774427914,2.92765,1594.7,1594.6,2.89733]
[1744774428719,1.6734,1594.7,1594.6,6.10513]
[1744774429114,2.92765,1594.7,1594.6,6.10513]
[1744774429419,1.6734,1594.7,1594.6,6.10513]
[1744774431624,0.00938849,1594.8,1594.7,1.25425]
[1744774431819,0.00938849,1594.8,1594.7,6.99355]
[1744774434331,0.00938849,1594.8,1594.7,11.99355]
[1744774434623,0.00938849,1594.8,1594.7,52.79355]
[1744774436326,0.00938849,1594.8,1594.7,47.79355]
[1744774438726,1.6469,1595.0,1594.9,1.25409]
[1744774439026,0.8493,1595.2,1595.1,1.25394]
[1744774439233,3.796,1595.4,1595.3,1.25378]
[1744774439428,4.6249,1595.4,1595.3,1.25378]
[1744774439831,1.2538,1595.3,1595.2,1.26319849]
[1744774440030,2.9765,1595.3,1595.2,1.26319849]
[1744774440830,2.9765,1595.3,1595.2,0.00938849]
[1744774446134,1.7227,1595.3,1595.2,1.26324849]
[1744774446629,2.97648,1595.3,1595.2,0.00938849]
[1744774447739,2.97648,1595.3,1595.2,1.26324849]
[1744774448128,2.97648,1595.3,1595.2,0.00938849]
[1744774448832,2.97648,1595.3,1595.2,1.26324849]
[1744774449131,2.97648,1595.3,1595.2,0.00938849]
[1744774450428,11.18428,1595.3,1595.2,0.00938849]
[1744774459043,6.18428,1595.3,1595.2,0.00938849]
[1744774467442,10.43830156,1595.5,1595.4,1.2537]
[1744774467641,10.43830156,1595.5,1595.4,4.4615]
[1744774467942,10.43830156,1595.5,1595.4,9.4615]
[1744774468142,11.69192156,1595.5,1595.4,11.8661]
[1744774468338,10.43830156,1595.5,1595.4,11.8661]
[1744774469848,10.43830156,1595.5,1595.4,2.4046]
[1744774469849,11.69192156,1595.5,1595.4,2.4046]
[1744774470049,1.2537,1595.4,1595.3,0.8144]
[1744774470253,2.854,1595.4,1595.3,0.8144]
[1744774472949,1.25378,1595.3,1595.2,0.00938849]
[1744774473150,3.71758,1595.3,1595.2,0.00938849]
[1744774479055,1.25433,1594.6,1594.5,13.77945784]
[1744774479549,1.25433,1594.6,1594.5,59.57945784]
[1744774480558,1.25433,1594.6,1594.5,57.88245784]
[1744774481058,1.25431,1594.7,1594.6,1.25429]
[1744774481554,1.25431,1594.7,1594.6,4.46209]
[1744774481752,1.25431,1594.7,1594.6,9.46209]
[1744774481948,1.25433,1594.6,1594.5,56.28551784]
[1744774482256,1.25433,1594.6,1594.5,47.95645]
[1744774484857,1.25433,1594.6,1594.5,46.7021]
[1744774485056,1.25433,1594.6,1594.5,47.95651]
[1744774485257,1.25433,1594.6,1594.5,46.7021]
[1744774486459,2.83733,1594.6,1594.5,46.7021]
[1744774486659,2.83733,1594.6,1594.5,47.95651]
[1744774487060,1.25431,1594.7,1594.6,1.25429]
[1744774487255,1.25433,1594.6,1594.5,47.95645]
[1744774487852,1.25433,1594.6,1594.5,44.996]
[1744774488058,2.04573,1594.6,1594.5,40.8]
[1744774488550,3.73323,1594.6,1594.5,40.8]
[1744774491064,1.25441,1594.5,1594.4,3.21718849]
[1744774491362,2.93041,1594.5,1594.4,3.21718849]
[1744774491562,2.93041,1594.5,1594.4,44.01718849]
[1744774495460,2.93041,1594.5,1594.4,46.08417849]
[1744774495968,2.93041,1594.5,1594.4,44.82968849]
[1744774497768,2.93041,1594.5,1594.4,46.41738849]
[1744774498065,2.93041,1594.5,1594.4,47.67187849]
[1744774499669,1.26377849,1594.6,1594.5,1.25441]
[1744774499967,1.25441,1594.5,1594.4,44.82968849]
[1744774500170,2.93931,1594.5,1594.4,47.80387849]
[1744774502564,2.93931,1594.5,1594.4,46.54938849]
[1744774502771,2.93931,1594.5,1594.4,44.82968849]
[1744774503071,2.93931,1594.5,1594.4,44.01718849]
[1744774508687,2.93931,1594.5,1594.4,45.27167849]
[1744774508884,1.26375849,1594.6,1594.5,1.25441]
[1744774509084,0.00938849,1594.6,1594.5,3.66211]
[1744774509284,0.00938849,1594.6,1594.5,7.86311]
[1744774510591,1.25411,1594.9,1594.8,1.25417]
[1744774510986,1.25411,1594.9,1594.8,2.434]
[1744774511184,2.87781,1594.9,1594.8,2.434]
[1744774511791,1.25417,1594.8,1594.7,4.46202]
[1744774511991,2.87787,1594.8,1594.7,3.2078]
[1744774512492,2.87787,1594.8,1594.7,4.46205]
[1744774513191,2.87787,1594.8,1594.7,6.04635]
[1744774514291,2.87787,1594.8,1594.7,2.83855]
[1744774514491,2.87787,1594.8,1594.7,6.04635]
[1744774516695,2.87787,1594.8,1594.7,4.7921]
[1744774516890,1.6237,1594.8,1594.7,6.04635]
[1744774517096,4.83153849,1595.0,1594.7,6.0463]
[1744774517292,1.25417,1594.8,1594.7,6.0463]
[1744774518494,1.25417,1594.8,1594.7,2.8385]
[1744774518898,1.25417,1594.8,1594.7,6.0463]
[1744774519994,2.85555,1594.9,1594.8,1.25417]
[1744774520195,0.00938849,1595.0,1594.9,1.25409]
[1744774520389,0.00938849,1595.0,1594.9,6.12009]
[1744774520697,0.00938849,1595.0,1594.9,7.85039]
[1744774522791,1.26339849,1595.0,1594.9,7.85039]
[1744774523086,2.94849849,1595.0,1594.9,7.85039]
[1744774523287,1.69448849,1595.0,1594.9,7.85039]
[1744774524497,2.94849849,1595.0,1594.9,7.85039]
[1744774525399,1.69448849,1595.0,1594.9,7.85039]
[1744774525898,2.94849849,1595.0,1594.9,1.6582]
[1744774526093,4.68426849,1595.0,1594.9,1.25409]
[1744774527004,1.25409,1594.9,1594.8,5.45411]
[1744774527189,2.83009,1594.9,1594.8,5.45411]
[1744774527589,1.576,1594.9,1594.6,20.87380396]
[1744774527792,1.25425,1594.7,1594.6,20.87380396]
[1744774528296,2.93995,1594.7,1594.6,20.87380396]
[1744774529203,1.25433,1594.6,1594.5,14.79646784]
[1744774529394,2.83033,1594.6,1594.5,14.79646784]
[1744774529595,2.83033,1594.6,1594.5,16.05087784]
[1744774529794,2.83033,1594.6,1594.5,14.79646784]
[1744774530400,2.83033,1594.6,1594.5,13.17526784]
[1744774533005,2.83033,1594.6,1594.5,14.42967784]
[1744774533502,2.83033,1594.6,1594.5,6.10061]
[1744774534807,2.83033,1594.6,1594.5,7.75111]
[1744774539707,2.83033,1594.6,1594.5,4.46221]
[1744774541709,2.83033,1594.6,1594.5,6.07371]
[1744774544611,1.576,1594.6,1594.5,6.07371]